Cogmind - Beta 13 @@@ ROGUE MODE // 2024.04.13 @ 20:06:17 Player: Naiya55 Result: Destroyed by D-53 Grenadier with Mini Grenade Launcher Performance ------------- Evolutions (0) 0 Regions Visited (2) 400 Robots Destroyed (17) 85 Value Destroyed (353) 353 Prototype IDs (2) 40 Alien Tech Used (0) 0 Bonus (0) 0 TOTAL SCORE: 878 Bonus ------- None Cogmind --------- Core Integrity 0/250 Matter 269/300 Energy 100/100 System Corruption 2% Temperature Cool (0) Movement Core (1400) Ox27 Location -10/Mines Parts ------- > --- POWER (1) -------- (None) > --- PROPULSION (2) --- (None) > --- UTILITY (2) ------ Huge Storage Unit Targeting Computer > --- WEAPON (2) ------- Light Cannon > --- INVENTORY (25) --- Light Ion Engine Signal Interpreter ECM Suite Power Shielding Utility Shielding Light Armor Plating Light Assault Rifle Peak State ------------ > --- POWER ------------ Light Ion Engine > --- PROPULSION ------- Light Treads Light Treads > --- UTILITY ---------- Small Storage Unit Small Matter Pod > --- WEAPON ----------- Assault Rifle Light Assault Rifle > --- INVENTORY -------- Light Ion Engine Aluminum Leg Aluminum Leg Medium Laser [Rating: 7] Favorites ----------- Power Light Ion Engine Engine Light Ion Engine Propulsion Light Treads Treads Light Treads Utility Small Storage Unit Storage Small Storage Unit Processor Targeting Computer Weapon Assault Rifle Ballistic Gun Assault Rifle Ballistic Cannon Light Cannon Build | -11 -10 -10 ------- Run | Yrd Mat Min Slots Evolved . | . . . Power . | . . . Propulsion . | . . . Utility . | . . . Weapon . | . . . Parts Attached 17 | 7 8 2 Power 3 | 1 2 . Engine 3 | 1 2 . Core . | . . . Reactor . | . . . Propulsion 3 | 2 1 . Treads 3 | 2 1 . Leg . | . . . Wheel . | . . . Hover . | . . . Flight . | . . . Utility 6 | 2 3 1 Device . | . . . Storage 5 | 2 2 1 Processor 1 | . 1 . Hackware . | . . . Protection . | . . . Artifact . | . . . Weapon 5 | 2 2 1 Energy Gun . | . . . Energy Cannon . | . . . Ballistic Gun 4 | 2 2 . Ballistic Cannon 1 | . . 1 Launcher . | . . . Special Weapon . | . . . Impact Weapon . | . . . Slashing Weapon . | . . . Piercing Weapon . | . . . Special Melee Weapon . | . . . Unidentified Prototypes . | . . . Parts Lost 5 | . . 5 Power 1 | . . 1 Propulsion 2 | . . 2 Utility . | . . . Weapon 2 | . . 2 Highest Loss Streak 3 | . . 3 To Critical Strikes . | . . . Average Slot Usage (%) 98 | . 98 98 Engine 14 | . 14 14 Treads 27 | . 27 26 Storage 17 | . 19 14 Processor 9 | . 7 14 Ballistic Gun 27 | . 28 26 Naked Turns . | . . . Heaviest Build 90 | 12 87 90 Greatest Support 40 | 40 40 40 Greatest Overweight (x) 28 | . 2 28 Average Overweight (x) . | . . 1 Largest Inventory Capacity 25 | 8 25 25 Average Capacity 12 | 7 8 21 Most Carried 9 | 4 9 8 Average Carried 7 | 2 7 7 Final Capacity 25 | 8 8 25 Final Carried 8 | 4 8 7 Class Distribution -------------------- 100% | Mutant Dominant Class ---------------- Mutant | -10/Materials Mutant | -10/Mines Resources | -11 -10 -10 ----------- Run | Yrd Mat Min Matter Collected 581 | 284 199 98 Remotely . | . . . Salvage Created 505 | 71 309 125 Parts 35 | 6 20 9 Haulers Intercepted . | . . . Recyclers Shooed 1 | 1 . . Parts Field Recycled . | . . . Retrieved Matter . | . . . Parts Self-Destructed . | . . . Prevented . | . . . Kills | -11 -10 -10 ------- Run | Yrd Mat Min Combat Hostiles Destroyed 14 | . 9 5 Guns 12 | . 9 3 Cannons 2 | . . 2 Classes Destroyed 4 | 2 2 . Worker 2 | 1 . 1 Recycler 1 | 1 . . Swarmer 6 | . 3 3 Grunt 8 | . 6 2 Best Kill Streak 3 | 2 3 3 Combat Bots Only 3 | . 3 3 Max Kills in Single Turn 1 | 1 1 1 Gunslinging . | . . . Exploded . | . . . Melee . | . . . Uniques/NPCs Destroyed . | . . . Combat | -11 -10 -10 -------- Run | Yrd Mat Min Hostile Shots Fired 121 | . 62 59 Missed 26 | . 11 15 Damage Taken 1171 | . 508 663 Core 251 | . 125 126 Absorbed by Shields . | . . . Regen/Repaired (Parts) 40 | . 40 . Core Remaining (%) 100 | 100 . . Volleys Fired 65 | 6 34 25 Largest 2 | 2 2 2 Hottest 55 | 40 40 55 Shots Fired 129 | 12 68 49 Gun 124 | 12 68 44 Cannon 5 | . . 5 Launcher . | . . . Special . | . . . Kinetic 129 | 12 68 49 Thermal . | . . . Explosive . | . . . Electromagnetic . | . . . Robot Hit Streak 16 | 3 11 16 Robot Miss Streak 4 | 4 2 4 Penetration Max . | . . . Secondary Targets 1 | . 1 . Max Gunslinging Chain 1 | . 1 . Shots Hit Robots 98 | 6 55 37 Core Hits 33 | 3 18 12 Critical Kills 1 | 1 . . Critical Parts Destroyed . | . . . Critical Strikes 2 | 1 . 1 Destroy 1 | 1 . . Blast 1 | . . 1 Melee Attacks . | . . . Impact . | . . . Slashing . | . . . Piercing . | . . . Sneak Attacks . | . . . Combat Hostiles . | . . . Follow-up Attacks . | . . . Damage Inflicted 1032 | 61 547 424 Guns 934 | 61 545 328 Cannons 96 | . . 96 Explosions . | . . . Melee . | . . . Ramming 2 | . 2 . Kinetic 1030 | 61 545 424 Thermal . | . . . Explosive . | . . . Electromagnetic . | . . . Impact . | . . . Slashing . | . . . Piercing . | . . . Highest Corruption 2 | . 2 2 Average Corruption 1 | . 1 2 Corruption Purged . | . . . Corruption Blocked . | . . . Effects 11 | . 5 6 Message Errors 5 | . 3 2 Matter Fused 1 | . 1 . Heat Flow Errors 2 | . . 2 Energy Discharges 2 | . 1 1 Alerts 1 | . . 1 Overload Shots . | . . . Overflow Damage . | . . . Projectiles . | . . . Explosions . | . . . Melee . | . . . Knockbacks 1 | . . 1 Impact . | . . . Kinetic 1 | . . 1 Secondary . | . . . Self-Inflicted Damage . | . . . Shots . | . . . Rammed 1 | . 1 . Targets Rammed 1 | . 1 . Kicked . | . . . Crushed . | . . . Highest Temperature 231 | . 34 231 Average Temperature 31 | . 11 44 Received Heat Transfer 417 | . 210 207 Siege Activations . | . . . Robots Corrupted . | . . . Combat Hostiles . | . . . Parts Fried . | . . . Impact Corruptions . | . . . Robots Melted . | . . . Combat Hostiles . | . . . Parts Melted . | . . . Heat Transferred . | . . . Parts Sabotaged . | . . . Parts Stolen . | . . . Parts Stripped . | . . . Power Chain Reactions . | . . . Alert | -11 -10 -10 ------- Run | Yrd Mat Min Peak Influence 170 | 10 170 136 Initial 66 | . 6 66 Average 83 | 2 84 107 Maximum Alert Level . | . . . Low Security (%) 100 | 100 100 100 Level 1 . | . . . Level 2 . | . . . Level 3 . | . . . Level 4 . | . . . Level 5 . | . . . High Security . | . . . Max Security . | . . . Squads Dispatched 3 | . 3 . Investigation 3 | . 3 . Extermination . | . . . Reinforcement . | . . . Assault . | . . . Garrison . | . . . Intercept . | . . . Searches Triggered . | . . . Construction Impeded . | . . . Haulers Reinforced . | . . . Active Scanning Responses . | . . . Cargo Convoy Interrupts . | . . . Stealth | -11 -10 -10 --------- Run | Yrd Mat Min Distress Signals . | . . . Communications Jammed . | . . . Distress Signals . | . . . Times Spotted 16 | . 9 7 Peak Tracking Total 3 | . 3 3 Tactical Retreats . | . . . Traps | -11 -10 -10 ------- Run | Yrd Mat Min Traps Triggered 3 | . 3 . Indirectly . | . . . Trap Hack Attempts . | . . . Triggered . | . . . Disarmed . | . . . Reprogrammed . | . . . Reused . | . . . Traps Extracted . | . . . Installed . | . . . Triggered . | . . . Machines | -11 -10 -10 ---------- Run | Yrd Mat Min Machines Disabled . | . . . Max in Single Turn . | . . . Machines Repaired . | . . . Machines Dismantled . | . . . Machines Sabotaged . | . . . Overloaded Fab Kills . | . . . Hacking | -11 -10 -10 --------- Run | Yrd Mat Min Machines Accessed 7 | . 7 . Terminals 5 | . 5 . Fabricators . | . . . Repair Stations 1 | . 1 . Recycling Units 1 | . 1 . Scanalyzers . | . . . Garrison Access . | . . . Total Hacks 17 | . 17 . Successful 11 | . 11 . Failed 6 | . 6 . Catastrophic 2 | . 2 . Database Lockouts . | . . . Manual 13 | . 13 . Terminals 13 | . 13 . Fabricators . | . . . Repair Stations 3 | . 3 . Recycling Units 1 | . 1 . Scanalyzers . | . . . Garrison Access . | . . . Terminal Hacks 7 | . 7 . Robot Analysis 3 | . 3 . Prototype ID Bank 1 | . 1 . Alert Level 1 | . 1 . Dispatch Records 1 | . 1 . Hauler Manifests 1 | . 1 . Fabricator Hacks . | . . . Repair Station Hacks 3 | . 3 . Scan Component 2 | . 2 . Repair 1 | . 1 . Recycling Unit Hacks . | . . . Scanalyzer . | . . . Garrison Access Hacks . | . . . Unauthorized Hacks 1 | . 1 . Terminals . | . . . Fabricators . | . . . Repair Stations . | . . . Recycling Units 1 | . 1 . Tunnel 1 | . 1 . Scanalyzers . | . . . Garrison Access . | . . . Data Cores Recovered . | . . . Used . | . . . Hacking Detections 6 | . 6 . Full Trace Events 1 | . 1 . Feedback Events . | . . . Feedback Blocked . | . . . Robot Schematics Acquired . | . . . Robots Built . | . . . Authchips . | . . . Time . | . . . Total Robot Build Rating . | . . . Part Schematics Acquired . | . . . Parts Built . | . . . Authchips . | . . . Time . | . . . Total Part Build Rating . | . . . Parts Repaired 1 | . 1 . Time 13 | . 13 . Parts Recycled . | . . . Recycled Matter . | . . . Retrieved Matter . | . . . Retrieved Components . | . . . Parts Scanalyzed . | . . . Part Schematics Acquired . | . . . Parts Damaged . | . . . Bothacking | -11 -10 -10 ------------ Run | Yrd Mat Min Used RIF Installer . | . . . Robots Hacked . | . . . Non-combat . | . . . Combat . | . . . Robot Hacks Applied . | . . . Relay Couplers Released . | . . . Fabnet Peak Effective % . | . . . Robots Rewired . | . . . Allies Hacked . | . . . Hacks Repelled . | . . . Allies | -11 -10 -10 -------- Run | Yrd Mat Min Total Allies . | . . . Largest Group . | . . . Highest-Rated Group . | . . . Highest-Rated Ally . | . . . Total Orders . | . . . Ally Attacks . | . . . Total Damage . | . . . Kills . | . . . Allies Corrupted . | . . . Allies Melted . | . . . Intel | -11 -10 -10 ------- Run | Yrd Mat Min Robot Analysis Total 3 | . 3 . Derelict Logs Recovered . | . . . Drone Launches . | . . . Drone Recoveries . | . . . Exploration | -11 -10 -10 ------------- Run | Yrd Mat Min Turns Passed 1465 | 156 799 510 Spaces Moved 618 | 81 405 132 Core 5 | 4 . 1 Treads 613 | 77 405 131 Legs . | . . . Wheels . | . . . Hover . | . . . Flight . | . . . Fastest Speed 50 | 50 160 160 Average Speed 183 | 154 160 272 Slowest Speed 1450 | 160 320 1450 Overloaded Moves . | . . . Propulsion Burnouts . | . . . Robots Hopped . | . . . Cave-ins Triggered . | . . . Exploration Rate (%) 29 | 6 54 29 Regions Visited 2 Branch Regions 1 Pre-discovered Areas 1 | . 1 . Known Exits Taken . | . . . Unknown Exits Taken 2 | 1 1 . Scrap Searched 2 | . . 2 Spaces Dug . | . . . Terrain Destroyed . | . . . Melee . | . . . Projectile . | . . . AOE . | . . . Terrain Rammed . | . . . Walls Destroyed . | . . . Machines Disabled . | . . . Actions | -11 -10 -10 --------- Run | Yrd Mat Min Total 841 | 98 495 248 Wait 112 | . 27 85 Move 616 | 80 404 132 Hop . | . . . Pick Up 18 | 5 11 2 Fast Attach 8 | 6 2 . Attach 2 | 1 . 1 Detach . | . . . Swap 7 | . 6 1 Drop 12 | . 10 2 Fire 65 | 6 34 25 Melee . | . . . Ram . | . . . Kick . | . . . Crush 1 | . 1 . Escape Stasis . | . . . Rewire . | . . . Trap . | . . . Miscellaneous . | . . . Route ------- -11/Scrapyard -10/Materials (discovered 2 exits: [*Mat] / [*Min]) -10/Mines History --------- Turn | Location | Event 3 | -11/Scrapyard | Discovered new exit (range 15) 157 | -11/Scrapyard | Entered Materials 306 | -10/Materials | Build established: Mutant 439 | -10/Materials | Repaired Lgt. Treads 607 | -10/Materials | Discovered new exit (range 12) 777 | -10/Materials | Discovered new exit (range 3) 956 | -10/Materials | Entered Mines 964 | -10/Mines | Core integrity fell below 50% 1245 | -10/Mines | Assembled infested the area 1429 | -10/Mines | Core integrity fell below 20% 1466 | -10/Mines | Destroyed by D-53 Grenadier with Mini Grenade Launcher Last Messages --------------- emitted. 01333_ 3X1Z|YGXEPAPE&H:K %JGXCMKJI&I3& 01352_ System corrupted: Heat flow error (+251). 01412_ Lgt. Treads destroyed. 01420_ Lgt. Assault Rifle destroyed. 01424_ G-47 Trooper knocked back. 01427_ G-47 Trooper suffers critical hit (Blast). 01427_ G-47 Trooper destroyed. 01433_ G-34 Mercenary destroyed. 01441_ Acquired 4 matter. 01442_ K-01 Serf collects debris. 01445_ Acquired 22 matter. 01446_ K-01 Serf collects debris. 01450_ K-01 Serf destroyed. 01453_ Acquired 10 matter. 01460_ Ion Engine destroyed. 01462_ Lgt. Treads destroyed. 01464_ Assault Rifle destroyed. 01465_ The unstable cave ceiling collapses. Map ----- +----------------------------------------------------+ | | | | | | | | | | | | | | | | | | | ?????????????????????????????????????????????????? | | ?????????????????????????????????????????????????? | | ?????????????????????????????????????????????????? | | ??????????????????###????????????????????????????? | | ?????????????????## ##???#####???????????????????? | | ????????????????## #???# ##??????????????????? | | ?????????????#### #???## #??????????????????? | | ????????????## ##????## #??????????????????? | | ????????????# ##?????# #??????????????????? | | ????????????# ####?## #??????????????????? | | ????????????## ### #??????????????????? | | ?????????????# ##??????????????????? | | ????????????## ##???????????????????? | | ??????????### #???????????????????? | | ?????????## ## ##??????????????????? | | ????????## ### #??????????????????? | | ????????# #?# @ #??????????????????? | | ???????## #?# #??????????????????? | | ??????## """ ##?# #??????????????????? | | ?????## """ ##??## #??????????????????? | | ?????# """ ##????## ### #?????????????????? | | ?????# """ #??????##??? d #?????????????????? | | ?????# ##??????????? dk#?????????????????? | | ?????# #????????????? ?????????????????? | | ?????# ##????????????? ????????????????? | | ?????## #??????????????# ???????????????? | | ??????## #???????????????# ??????????????? | | ???????# #????????????????# ###?????????????? | | ???????## ##?????????????????###???????????????? | | ????????## #????????????????????????????????????? | | ?????????# #????????????????????????????????????? | | ?????????# #????????????????????????????????????? | | ?????????# #################????????????????????? | | ??????####!! ?????????????? | | ?????## ## %######### ##### #????????????????????? | | ????## #! #???????# #??????????????????????????? | | ????# [% #???????# #??????????????????????????? | | ????# ####??###### #??????????????????????????? | | ???## ##????# #??????????????????????????? | | #### ##???# ######??????????????????????????? | | # #???# #???????????????????????????????? | +----------------------------------------------------+ Best States ------------- Heat Dissipation 25 Energy Generation 10 Energy Capacity 250 Matter Stores 315 Matter Capacity 350 Sight Range 16 Terrain Scan Density 10 Evasion (%) 40 Targeting Accuracy 5 Recoil Reduction 2 Item Schematics ----------------- None Robot Schematics ------------------ None Fabricated ------------ Nothing Alien Tech Used ----------------- None Achievements -------------- Armchair Analyst Challenges ------------ None Game ------ Seed SensorOpticalSplitter Manual? 0 Play Time 00:17:54 Cumulative 4.3 hours Start 2024.04.13 @ 19:45:36 End 2024.04.13 @ 20:06:17 Sessions 1 Manual Loads 0 Difficulty Rogue Special Mode None Game No. 11 Rogue 11 Adventurer 0 Explorer 0 Win Type - Total 0 Types 0/0/0/0/0/0/0/0/0 Lore% 15 Gallery% 6 Achievement% 10 Wizard Run 0 Options --------- Layout 1 ASCII 0 Keyboard 0 Movement Vi Keybinds 0 Fullscreen 2 Font 24/Smallcaps Map View 50x35 Zoom Use 0% Tactical HUD 1 Map Filters NONE Filters NONE Steam 1 RUN: c2ef4186-0107-457a-a7ba-40c878a7e584